[Event "Titled Tuesday Blitz November 14 Early 2023"]
[White "Larino Nieto, David"]
[Black "Jamal-Jamal-Jamal"]
[WhiteFideId "2256444"]
[WhiteElo "2600"]
[BlackElo "2439"]
[Result "1-0"]
[Round "10"]
[TimeControl "180+1"]
[Date "2023.11.14"]
[WhiteClock "0:00:19"]
[BlackClock "0:00:18"]
[Board "82"]

1. a3 {[%clk 0:03:00]}  Nf6 {[%clk 0:02:50]} 2. b3 {[%clk 0:03:01]}  e6 {[%clk 0:02:50]} 3. c3 {[%clk 0:03:01]}  d5 {[%clk 0:02:50]} 4. d3 {[%clk 0:03:01]}  c5 {[%clk 0:02:51]} 5. e3 {[%clk 0:03:02]}  Nc6 {[%clk 0:02:51]} 6. f3 {[%clk 0:03:03]}  h5 {[%clk 0:02:51]} 7. Ra2 {[%clk 0:03:03]}  h4 {[%clk 0:02:52]} 8. Rf2 {[%clk 0:03:01]}  Bd6 {[%clk 0:02:51]} 9. d4 {[%clk 0:02:46]}  cxd4 {[%clk 0:02:47]} 10. cxd4 {[%clk 0:02:44]}  Qc7 {[%clk 0:02:46]} 11. Rc2 {[%clk 0:02:39]}  Bxh2 {[%clk 0:02:37]} 12. Ne2 {[%clk 0:02:39]}  Bd6 {[%clk 0:02:35]} 13. Nbc3 {[%clk 0:02:37]}  a6 {[%clk 0:02:34]} 14. e4 {[%clk 0:02:34]}  dxe4 {[%clk 0:02:25]} 15. fxe4 {[%clk 0:02:35]}  Bg3+ {[%clk 0:02:24]} 16. Kd2 {[%clk 0:02:33]}  Bf4+ {[%clk 0:01:49]} 17. Ke1 {[%clk 0:02:26]}  Bg3+ {[%clk 0:01:32]} 18. Kd2 {[%clk 0:02:26]}  Ng4 {[%clk 0:01:32]} 19. Nxg3 {[%clk 0:02:12]}  Qxg3 {[%clk 0:01:29]} 20. Qe1 {[%clk 0:01:57]}  Qxe1+ {[%clk 0:01:23]} 21. Kxe1 {[%clk 0:01:58]}  Nxd4 {[%clk 0:01:22]} 22. Rb2 {[%clk 0:01:57]}  Bd7 {[%clk 0:01:12]} 23. Ne2 {[%clk 0:01:48]}  Nxe2 {[%clk 0:01:11]} 24. Bxe2 {[%clk 0:01:49]}  Ne5 {[%clk 0:01:08]} 25. Bg5 {[%clk 0:01:46]}  Ng6 {[%clk 0:01:06]} 26. Rc2 {[%clk 0:01:36]}  Bc6 {[%clk 0:01:03]} 27. Kf2 {[%clk 0:01:31]}  f6 {[%clk 0:01:03]} 28. Be3 {[%clk 0:01:30]}  Kf7 {[%clk 0:01:02]} 29. b4 {[%clk 0:01:25]}  Rac8 {[%clk 0:00:57]} 30. Bf3 {[%clk 0:01:11]}  Ne5 {[%clk 0:00:53]} 31. Bd4 {[%clk 0:00:58]}  Nxf3 {[%clk 0:00:52]} 32. gxf3 {[%clk 0:00:59]}  e5 {[%clk 0:00:51]} 33. Bb6 {[%clk 0:00:58]}  g5 {[%clk 0:00:49]} 34. Rd2 {[%clk 0:00:54]}  h3 {[%clk 0:00:44]} 35. Kg3 {[%clk 0:00:54]}  Kg6 {[%clk 0:00:41]} 36. Rxh3 {[%clk 0:00:51]}  Rxh3+ {[%clk 0:00:41]} 37. Kxh3 {[%clk 0:00:52]}  Rh8+ {[%clk 0:00:39]} 38. Kg3 {[%clk 0:00:49]}  Kf7 {[%clk 0:00:39]} 39. Rd6 {[%clk 0:00:43]}  Re8 {[%clk 0:00:38]} 40. Kg4 {[%clk 0:00:39]}  Re6 {[%clk 0:00:37]} 41. Rd8 {[%clk 0:00:34]}  Re8 {[%clk 0:00:37]} 42. Rd6 {[%clk 0:00:35]}  Re6 {[%clk 0:00:38]} 43. Rd2 {[%clk 0:00:34]}  Re7 {[%clk 0:00:35]} 44. Bc5 {[%clk 0:00:28]}  Rd7 {[%clk 0:00:30]} 45. Rh2 {[%clk 0:00:28]}  Ke6 {[%clk 0:00:30]} 46. Rh8 {[%clk 0:00:23]}  Rd1 {[%clk 0:00:27]} 47. Rh7 {[%clk 0:00:20]}  f5+ {[%clk 0:00:17]} 48. exf5+ {[%clk 0:00:19]}  Kf6 {[%clk 0:00:18]} 49. Be7# {[%clk 0:00:19]} 1-0


[Site "https://www.chess.com"]

[Event "Titled Tuesday Blitz November 14 Early 2023"]
[White "ChessLebaneseSalah"]
[Black "Ezat, Mohamed"]
[BlackFideId "10600906"]
[WhiteElo "2423"]
[BlackElo "2594"]
[Result "0-1"]
[Round "10"]
[TimeControl "180+1"]
[Date "2023.11.14"]
[WhiteClock "0:00:05"]
[BlackClock "0:00:53"]
[Board "83"]

1. e4 {[%clk 0:03:00]}  e5 {[%clk 0:02:58]} 2. Nf3 {[%clk 0:03:01]}  Nc6 {[%clk 0:02:58]} 3. Bb5 {[%clk 0:03:01]}  Nge7 {[%clk 0:02:57]} 4. Nc3 {[%clk 0:02:58]}  d6 {[%clk 0:02:55]} 5. O-O {[%clk 0:02:55]}  Bd7 {[%clk 0:02:49]} 6. Re1 {[%clk 0:02:50]}  g6 {[%clk 0:02:48]} 7. d4 {[%clk 0:02:48]}  exd4 {[%clk 0:02:47]} 8. Nxd4 {[%clk 0:02:47]}  Bg7 {[%clk 0:02:47]} 9. Be3 {[%clk 0:02:45]}  O-O {[%clk 0:02:46]} 10. Qd2 {[%clk 0:02:37]}  a6 {[%clk 0:02:40]} 11. Be2 {[%clk 0:02:29]}  f5 {[%clk 0:02:37]} 12. exf5 {[%clk 0:02:20]}  Nxf5 {[%clk 0:02:13]} 13. Nxf5 {[%clk 0:02:15]}  Bxf5 {[%clk 0:02:12]} 14. Nd5 {[%clk 0:02:06]}  Kh8 {[%clk 0:02:05]} 15. c3 {[%clk 0:01:49]}  Ne5 {[%clk 0:02:02]} 16. Bh6 {[%clk 0:01:17]}  Qd7 {[%clk 0:01:50]} 17. Bxg7+ {[%clk 0:01:12]}  Qxg7 {[%clk 0:01:49]} 18. Ne3 {[%clk 0:01:11]}  Be4 {[%clk 0:01:46]} 19. Nc4 {[%clk 0:00:59]}  Bc6 {[%clk 0:01:26]} 20. Nxe5 {[%clk 0:00:58]}  dxe5 {[%clk 0:01:26]} 21. Bf1 {[%clk 0:00:57]}  Rad8 {[%clk 0:01:23]} 22. Qe3 {[%clk 0:00:58]}  e4 {[%clk 0:01:23]} 23. Rad1 {[%clk 0:00:56]}  Qf7 {[%clk 0:01:18]} 24. Rd4 {[%clk 0:00:53]}  Qxa2 {[%clk 0:01:15]} 25. Red1 {[%clk 0:00:50]}  Rde8 {[%clk 0:01:08]} 26. Bc4 {[%clk 0:00:42]}  Qxb2 {[%clk 0:01:04]} 27. Rd7 {[%clk 0:00:15]}  Qb6 {[%clk 0:01:03]} 28. Qh6 {[%clk 0:00:09]}  Qxf2+ {[%clk 0:01:02]} 29. Kh1 {[%clk 0:00:08]}  Bxd7 {[%clk 0:01:02]} 30. h3 {[%clk 0:00:05]}  Be6 {[%clk 0:00:53]} 31. Bxe6 {[%clk 0:00:04]}  Rxe6 {[%clk 0:00:53]} 32. Rd7 {[%clk 0:00:05]}  Qf1+ {[%clk 0:00:52]} 33. Kh2 {[%clk 0:00:05]}  Qf4+ {[%clk 0:00:53]} 34. Qxf4 {[%clk 0:00:06]}  Rxf4 {[%clk 0:00:53]} 35. Rxc7 {[%clk 0:00:05]}  e3 {[%clk 0:00:53]} 0-1


[Site "https://www.chess.com"]

[Event "Titled Tuesday Blitz November 14 Early 2023"]
[White "Cheer_Down"]
[Black "Derjabin, Ilja"]
[BlackFideId "14104768"]
[WhiteElo "2403"]
[BlackElo "2569"]
[Result "0-1"]
[Round "10"]
[TimeControl "180+1"]
[Date "2023.11.14"]
[WhiteClock "0:01:37"]
[BlackClock "0:01:18"]
[Board "84"]

1. c4 {[%clk 0:03:00]}  c5 {[%clk 0:02:59]} 2. Nf3 {[%clk 0:02:58]}  Nf6 {[%clk 0:02:58]} 3. Nc3 {[%clk 0:02:58]}  g6 {[%clk 0:02:58]} 4. g3 {[%clk 0:02:57]}  Bg7 {[%clk 0:02:58]} 5. Bg2 {[%clk 0:02:57]}  O-O {[%clk 0:02:59]} 6. d4 {[%clk 0:02:58]}  Nc6 {[%clk 0:03:00]} 7. d5 {[%clk 0:02:57]}  Na5 {[%clk 0:03:00]} 8. Nd2 {[%clk 0:02:51]}  d6 {[%clk 0:03:00]} 9. O-O {[%clk 0:02:47]}  a6 {[%clk 0:03:00]} 10. Qc2 {[%clk 0:02:45]}  b5 {[%clk 0:02:59]} 11. b3 {[%clk 0:02:44]}  b4 {[%clk 0:02:54]} 12. Na4 {[%clk 0:02:40]}  Bd7 {[%clk 0:02:47]} 13. Bb2 {[%clk 0:02:36]}  Bxa4 {[%clk 0:02:46]} 14. bxa4 {[%clk 0:02:37]}  Nd7 {[%clk 0:02:46]} 15. Bxg7 {[%clk 0:02:33]}  Kxg7 {[%clk 0:02:46]} 16. Nb3 {[%clk 0:02:33]}  Ne5 {[%clk 0:02:40]} 17. Nd2 {[%clk 0:02:32]}  Rb8 {[%clk 0:02:37]} 18. h3 {[%clk 0:02:30]}  f5 {[%clk 0:02:20]} 19. f4 {[%clk 0:02:29]}  Nd7 {[%clk 0:02:19]} 20. e4 {[%clk 0:02:27]}  fxe4 {[%clk 0:02:17]} 21. Nxe4 {[%clk 0:02:27]}  Rf5 {[%clk 0:02:07]} 22. Ng5 {[%clk 0:02:24]}  Rxg5 {[%clk 0:02:05]} 23. fxg5 {[%clk 0:02:24]}  Ne5 {[%clk 0:02:06]} 24. Rf4 {[%clk 0:02:12]}  b3 {[%clk 0:01:58]} 25. axb3 {[%clk 0:02:11]}  Nxb3 {[%clk 0:01:59]} 26. Rd1 {[%clk 0:02:07]}  Nd4 {[%clk 0:01:58]} 27. Rdxd4 {[%clk 0:02:05]}  cxd4 {[%clk 0:01:58]} 28. Rxd4 {[%clk 0:02:06]}  Qb6 {[%clk 0:01:56]} 29. Qf2 {[%clk 0:02:02]}  Rf8 {[%clk 0:01:49]} 30. Rf4 {[%clk 0:01:58]}  Qxf2+ {[%clk 0:01:32]} 31. Kxf2 {[%clk 0:01:58]}  Nd3+ {[%clk 0:01:32]} 32. Ke3 {[%clk 0:01:57]}  Nxf4 {[%clk 0:01:33]} 33. gxf4 {[%clk 0:01:57]}  Rc8 {[%clk 0:01:31]} 34. Kd4 {[%clk 0:01:57]}  Rf8 {[%clk 0:01:26]} 35. Ke3 {[%clk 0:01:55]}  Rb8 {[%clk 0:01:25]} 36. Kd4 {[%clk 0:01:54]}  Rb4 {[%clk 0:01:23]} 37. a5 {[%clk 0:01:53]}  Ra4 {[%clk 0:01:23]} 38. Bf1 {[%clk 0:01:47]}  Rxa5 {[%clk 0:01:23]} 39. Bd3 {[%clk 0:01:47]}  Ra3 {[%clk 0:01:18]} 40. Be4 {[%clk 0:01:37]} 0-1


[Site "https://www.chess.com"]

[Event "Titled Tuesday Blitz November 14 Early 2023"]
[White "Sharafiev, Azat"]
[Black "Lund, Gunnar"]
[WhiteFideId "4186214"]
[BlackFideId "1520814"]
[WhiteElo "2400"]
[BlackElo "2549"]
[Result "1/2-1/2"]
[Round "10"]
[TimeControl "180+1"]
[Date "2023.11.14"]
[WhiteClock "0:02:19"]
[BlackClock "0:02:38"]
[Board "85"]

1. e4 {[%clk 0:02:59]}  h5 {[%clk 0:03:00]} 2. d4 {[%clk 0:02:58]}  a5 {[%clk 0:03:01]} 3. c4 {[%clk 0:02:58]}  h4 {[%clk 0:03:02]} 4. Nc3 {[%clk 0:02:58]}  a4 {[%clk 0:03:03]} 5. Nf3 {[%clk 0:02:57]}  h3 {[%clk 0:03:03]} 6. gxh3 {[%clk 0:02:57]}  a3 {[%clk 0:03:04]} 7. b3 {[%clk 0:02:56]}  d6 {[%clk 0:03:03]} 8. Bf4 {[%clk 0:02:54]}  g6 {[%clk 0:03:01]} 9. Qd2 {[%clk 0:02:50]}  Bg7 {[%clk 0:02:59]} 10. O-O-O {[%clk 0:02:50]}  Nc6 {[%clk 0:02:54]} 11. Bg2 {[%clk 0:02:49]}  Bxh3 {[%clk 0:02:54]} 12. Bxh3 {[%clk 0:02:49]}  Rxh3 {[%clk 0:02:55]} 13. Ng5 {[%clk 0:02:35]}  Rh5 {[%clk 0:02:49]} 14. Nf3 {[%clk 0:02:21]}  Rh3 {[%clk 0:02:47]} 15. Ng5 {[%clk 0:02:20]}  Rh5 {[%clk 0:02:47]} 16. Nf3 {[%clk 0:02:21]}  Qd7 {[%clk 0:02:45]} 17. Rhg1 {[%clk 0:02:18]}  Rh3 {[%clk 0:02:39]} 18. Ng5 {[%clk 0:02:18]}  Rh5 {[%clk 0:02:39]} 19. Nf3 {[%clk 0:02:18]}  Rh3 {[%clk 0:02:38]} 20. Ng5 {[%clk 0:02:18]}  Rh5 {[%clk 0:02:38]} 21. Nf3 {[%clk 0:02:19]} 1/2-1/2


[Site "https://www.chess.com"]

[Event "Titled Tuesday Blitz November 14 Early 2023"]
[White "Yaksin, Oleg"]
[Black "alfianasybullina"]
[WhiteFideId "24105880"]
[WhiteElo "2540"]
[BlackElo "2301"]
[Result "1-0"]
[Round "10"]
[TimeControl "180+1"]
[Date "2023.11.14"]
[WhiteClock "0:00:06"]
[BlackClock "0:00:10"]
[Board "87"]

1. d4 {[%clk 0:03:00]}  Nf6 {[%clk 0:02:58]} 2. c4 {[%clk 0:03:01]}  c5 {[%clk 0:02:58]} 3. d5 {[%clk 0:03:01]}  e6 {[%clk 0:02:58]} 4. Nc3 {[%clk 0:03:01]}  exd5 {[%clk 0:02:59]} 5. cxd5 {[%clk 0:03:02]}  d6 {[%clk 0:03:00]} 6. g3 {[%clk 0:03:02]}  g6 {[%clk 0:03:00]} 7. Bg2 {[%clk 0:03:03]}  Bg7 {[%clk 0:03:01]} 8. Nf3 {[%clk 0:03:04]}  O-O {[%clk 0:03:01]} 9. O-O {[%clk 0:03:04]}  a6 {[%clk 0:02:58]} 10. a4 {[%clk 0:03:04]}  Qe7 {[%clk 0:02:58]} 11. Re1 {[%clk 0:03:03]}  Ne8 {[%clk 0:02:50]} 12. Nd2 {[%clk 0:02:59]}  Nc7 {[%clk 0:02:48]} 13. Nc4 {[%clk 0:02:56]}  Nd7 {[%clk 0:02:48]} 14. Bf4 {[%clk 0:02:37]}  Ne5 {[%clk 0:02:38]} 15. Nb6 {[%clk 0:02:36]}  Rb8 {[%clk 0:02:38]} 16. Rc1 {[%clk 0:02:34]}  g5 {[%clk 0:02:31]} 17. Bd2 {[%clk 0:02:29]}  f5 {[%clk 0:02:31]} 18. Qc2 {[%clk 0:02:23]}  Nd7 {[%clk 0:02:25]} 19. Nxc8 {[%clk 0:02:07]}  Rbxc8 {[%clk 0:02:25]} 20. Bh3 {[%clk 0:01:53]}  Qf6 {[%clk 0:02:06]} 21. b3 {[%clk 0:01:27]}  b5 {[%clk 0:01:55]} 22. Bg2 {[%clk 0:01:25]}  Ne5 {[%clk 0:01:48]} 23. Nd1 {[%clk 0:01:23]}  b4 {[%clk 0:01:47]} 24. Ne3 {[%clk 0:01:21]}  f4 {[%clk 0:01:45]} 25. Nc4 {[%clk 0:01:16]}  f3 {[%clk 0:01:36]} 26. Nxe5 {[%clk 0:00:50]}  fxg2 {[%clk 0:01:28]} 27. Ng4 {[%clk 0:00:48]}  Qd4 {[%clk 0:01:22]} 28. h3 {[%clk 0:00:18]}  h5 {[%clk 0:01:20]} 29. Ne3 {[%clk 0:00:18]}  Nxd5 {[%clk 0:01:16]} 30. Qc4 {[%clk 0:00:14]}  Qxc4 {[%clk 0:01:15]} 31. Nxc4 {[%clk 0:00:15]}  Rcd8 {[%clk 0:01:09]} 32. Bxg5 {[%clk 0:00:15]}  Bf6 {[%clk 0:01:04]} 33. Bh6 {[%clk 0:00:14]}  Bg7 {[%clk 0:01:03]} 34. Bxg7 {[%clk 0:00:14]}  Kxg7 {[%clk 0:01:03]} 35. Rcd1 {[%clk 0:00:14]}  Nc3 {[%clk 0:00:57]} 36. Rxd6 {[%clk 0:00:14]}  Rxd6 {[%clk 0:00:55]} 37. Nxd6 {[%clk 0:00:15]}  Rd8 {[%clk 0:00:51]} 38. Nc4 {[%clk 0:00:15]}  Re8 {[%clk 0:00:36]} 39. e3 {[%clk 0:00:11]}  Ne4 {[%clk 0:00:27]} 40. Kxg2 {[%clk 0:00:10]}  Rf8 {[%clk 0:00:27]} 41. Re2 {[%clk 0:00:10]}  Ng5 {[%clk 0:00:26]} 42. h4 {[%clk 0:00:09]}  Nf3 {[%clk 0:00:25]} 43. Nd2 {[%clk 0:00:09]}  Ne5 {[%clk 0:00:23]} 44. f4 {[%clk 0:00:09]}  Nd3 {[%clk 0:00:22]} 45. Nc4 {[%clk 0:00:08]}  Re8 {[%clk 0:00:21]} 46. Rd2 {[%clk 0:00:08]}  Nc1 {[%clk 0:00:19]} 47. Rd7+ {[%clk 0:00:05]}  Kg8 {[%clk 0:00:18]} 48. Kf3 {[%clk 0:00:05]}  Nxb3 {[%clk 0:00:18]} 49. Rc7 {[%clk 0:00:05]}  Rd8 {[%clk 0:00:15]} 50. f5 {[%clk 0:00:05]}  Rd1 {[%clk 0:00:14]} 51. Kf4 {[%clk 0:00:04]}  Rf1+ {[%clk 0:00:14]} 52. Kg5 {[%clk 0:00:05]}  Rg1 {[%clk 0:00:15]} 53. Kf6 {[%clk 0:00:02]}  Rxg3 {[%clk 0:00:15]} 54. e4 {[%clk 0:00:03]}  Nd4 {[%clk 0:00:14]} 55. e5 {[%clk 0:00:03]}  Rf3 {[%clk 0:00:14]} 56. Nd6 {[%clk 0:00:03]}  b3 {[%clk 0:00:13]} 57. Rb7 {[%clk 0:00:03]}  c4 {[%clk 0:00:12]} 58. Nxc4 {[%clk 0:00:03]}  Rxf5+ {[%clk 0:00:11]} 59. Kg6 {[%clk 0:00:03]}  Rf8 {[%clk 0:00:11]} 60. Nd6 {[%clk 0:00:04]}  Rd8 {[%clk 0:00:11]} 61. Rg7+ {[%clk 0:00:03]}  Kf8 {[%clk 0:00:11]} 62. Rf7+ {[%clk 0:00:03]}  Kg8 {[%clk 0:00:12]} 63. Rg7+ {[%clk 0:00:03]}  Kf8 {[%clk 0:00:12]} 64. Rf7+ {[%clk 0:00:04]}  Kg8 {[%clk 0:00:13]} 65. Ne4 {[%clk 0:00:05]}  Ne6 {[%clk 0:00:10]} 66. Nf6+ {[%clk 0:00:05]}  Kh8 {[%clk 0:00:10]} 67. Rh7# {[%clk 0:00:06]} 1-0


[Site "https://www.chess.com"]

[Event "Titled Tuesday Blitz November 14 Early 2023"]
[White "Jovic, Stanoje"]
[Black "Suduvasachmatai"]
[WhiteFideId "905020"]
[WhiteElo "2513"]
[BlackElo "2260"]
[Result "1-0"]
[Round "10"]
[TimeControl "180+1"]
[Date "2023.11.14"]
[WhiteClock "0:00:07"]
[BlackClock "0:00:05"]
[Board "89"]

1. c4 {[%clk 0:02:59]}  e5 {[%clk 0:02:53]} 2. g3 {[%clk 0:02:58]}  Nf6 {[%clk 0:02:52]} 3. Bg2 {[%clk 0:02:58]}  c6 {[%clk 0:02:53]} 4. d4 {[%clk 0:02:53]}  exd4 {[%clk 0:02:52]} 5. Qxd4 {[%clk 0:02:52]}  d5 {[%clk 0:02:52]} 6. Nc3 {[%clk 0:02:52]}  Be6 {[%clk 0:02:51]} 7. Nf3 {[%clk 0:02:46]}  Na6 {[%clk 0:02:51]} 8. cxd5 {[%clk 0:02:43]}  cxd5 {[%clk 0:02:46]} 9. Bg5 {[%clk 0:02:38]}  Be7 {[%clk 0:02:44]} 10. O-O {[%clk 0:02:31]}  O-O {[%clk 0:02:42]} 11. Rfd1 {[%clk 0:02:30]}  h6 {[%clk 0:02:34]} 12. Bxf6 {[%clk 0:02:30]}  Bxf6 {[%clk 0:02:33]} 13. Qa4 {[%clk 0:02:29]}  Nc5 {[%clk 0:02:29]} 14. Qb5 {[%clk 0:02:27]}  Bxc3 {[%clk 0:02:25]} 15. Qxc5 {[%clk 0:02:17]}  Ba5 {[%clk 0:02:16]} 16. e4 {[%clk 0:02:09]}  Bb6 {[%clk 0:02:15]} 17. Qb4 {[%clk 0:02:06]}  Rc8 {[%clk 0:01:40]} 18. exd5 {[%clk 0:02:03]}  Bf5 {[%clk 0:01:37]} 19. d6 {[%clk 0:01:52]}  Rc2 {[%clk 0:01:35]} 20. Nd4 {[%clk 0:01:41]}  Bxd4 {[%clk 0:01:32]} 21. Rxd4 {[%clk 0:01:30]}  b6 {[%clk 0:01:18]} 22. g4 {[%clk 0:01:24]}  Qh4 {[%clk 0:01:13]} 23. Rf1 {[%clk 0:01:14]}  Bg6 {[%clk 0:00:58]} 24. d7 {[%clk 0:01:07]}  Rd8 {[%clk 0:00:50]} 25. h3 {[%clk 0:01:03]}  Qf6 {[%clk 0:00:44]} 26. Rf4 {[%clk 0:00:25]}  Qe6 {[%clk 0:00:29]} 27. Rd1 {[%clk 0:00:24]}  Rxd7 {[%clk 0:00:26]} 28. Rxd7 {[%clk 0:00:22]}  Qxd7 {[%clk 0:00:27]} 29. a4 {[%clk 0:00:18]}  Rc1+ {[%clk 0:00:26]} 30. Kh2 {[%clk 0:00:18]}  Qc7 {[%clk 0:00:24]} 31. Qd2 {[%clk 0:00:14]}  Rc4 {[%clk 0:00:18]} 32. Kg3 {[%clk 0:00:13]}  Bd3 {[%clk 0:00:08]} 33. b3 {[%clk 0:00:11]}  Rc3 {[%clk 0:00:03]} 34. Bf3 {[%clk 0:00:10]}  g5 {[%clk 0:00:03]} 35. Qxc3 {[%clk 0:00:05]}  Qxf4+ {[%clk 0:00:04]} 36. Kg2 {[%clk 0:00:05]}  Bf1+ {[%clk 0:00:03]} 37. Kxf1 {[%clk 0:00:05]}  Qh2 {[%clk 0:00:03]} 38. Ke2 {[%clk 0:00:05]}  Qf4 {[%clk 0:00:02]} 39. Qe3 {[%clk 0:00:05]}  Qb4 {[%clk 0:00:01]} 40. Kf1 {[%clk 0:00:05]}  Qa3 {[%clk 0:00:02]} 41. Kg2 {[%clk 0:00:05]}  Qa1 {[%clk 0:00:02]} 42. Bd5 {[%clk 0:00:05]}  Qf6 {[%clk 0:00:03]} 43. Qf3 {[%clk 0:00:05]}  Kg7 {[%clk 0:00:04]} 44. Qxf6+ {[%clk 0:00:05]}  Kxf6 {[%clk 0:00:04]} 45. Kf3 {[%clk 0:00:06]}  Ke5 {[%clk 0:00:05]} 46. Bxf7 {[%clk 0:00:06]}  Kd4 {[%clk 0:00:06]} 47. Ke2 {[%clk 0:00:05]}  Ke4 {[%clk 0:00:05]} 48. f3+ {[%clk 0:00:06]}  Kf4 {[%clk 0:00:06]} 49. Kf2 {[%clk 0:00:06]}  a5 {[%clk 0:00:06]} 50. Bg8 {[%clk 0:00:06]}  Ke5 {[%clk 0:00:05]} 51. Ke3 {[%clk 0:00:06]}  Kf6 {[%clk 0:00:05]} 52. f4 {[%clk 0:00:06]}  Kg7 {[%clk 0:00:06]} 53. Be6 {[%clk 0:00:06]}  Kf6 {[%clk 0:00:06]} 54. f5 {[%clk 0:00:06]}  Ke5 {[%clk 0:00:06]} 55. Kd3 {[%clk 0:00:06]}  Kf6 {[%clk 0:00:06]} 56. Kc4 {[%clk 0:00:06]}  Ke5 {[%clk 0:00:07]} 57. Kb5 {[%clk 0:00:07]}  Kf6 {[%clk 0:00:05]} 58. Kxb6 {[%clk 0:00:07]} 1-0


[Site "https://www.chess.com"]

[Event "Titled Tuesday Blitz November 14 Early 2023"]
[White "Rasmussen, Casper"]
[Black "Nagare Kaivalya Sandip"]
[WhiteFideId "1402005"]
[BlackFideId "25957929"]
[WhiteElo "2310"]
[BlackElo "2645"]
[Result "0-1"]
[Round "10"]
[TimeControl "180+1"]
[Date "2023.11.14"]
[WhiteClock "0:00:21"]
[BlackClock "0:01:49"]
[Board "90"]

1. c4 {[%clk 0:03:00]}  Nf6 {[%clk 0:02:59]} 2. g3 {[%clk 0:03:01]}  g6 {[%clk 0:03:00]} 3. Bg2 {[%clk 0:03:02]}  Bg7 {[%clk 0:03:01]} 4. Nc3 {[%clk 0:03:02]}  O-O {[%clk 0:03:00]} 5. d3 {[%clk 0:03:03]}  c5 {[%clk 0:03:01]} 6. Bg5 {[%clk 0:03:03]}  Nc6 {[%clk 0:03:01]} 7. Qd2 {[%clk 0:03:04]}  d6 {[%clk 0:03:00]} 8. Bh6 {[%clk 0:03:04]}  Be6 {[%clk 0:02:59]} 9. h4 {[%clk 0:03:04]}  Qd7 {[%clk 0:02:58]} 10. h5 {[%clk 0:03:04]}  Ne5 {[%clk 0:02:44]} 11. Bxg7 {[%clk 0:03:01]}  Kxg7 {[%clk 0:02:44]} 12. hxg6 {[%clk 0:03:01]}  fxg6 {[%clk 0:02:43]} 13. Qh6+ {[%clk 0:03:01]}  Kg8 {[%clk 0:02:43]} 14. Nf3 {[%clk 0:02:42]}  Nxf3+ {[%clk 0:02:32]} 15. Bxf3 {[%clk 0:02:40]}  Rf7 {[%clk 0:02:33]} 16. O-O-O {[%clk 0:02:37]}  Raf8 {[%clk 0:02:31]} 17. Rh4 {[%clk 0:02:10]}  a6 {[%clk 0:02:16]} 18. Rdh1 {[%clk 0:02:09]}  b5 {[%clk 0:02:16]} 19. Ne4 {[%clk 0:01:24]}  bxc4 {[%clk 0:02:05]} 20. Ng5 {[%clk 0:01:11]}  cxd3 {[%clk 0:02:03]} 21. Nxh7 {[%clk 0:00:55]}  Nxh7 {[%clk 0:01:56]} 22. Qxg6+ {[%clk 0:00:43]}  Rg7 {[%clk 0:01:56]} 23. Qxd3 {[%clk 0:00:34]}  Bf5 {[%clk 0:01:57]} 24. Be4 {[%clk 0:00:30]}  Bxe4 {[%clk 0:01:55]} 25. Qxe4 {[%clk 0:00:31]}  Qf5 {[%clk 0:01:54]} 26. Qc4+ {[%clk 0:00:23]}  d5 {[%clk 0:01:49]} 27. Qxc5 {[%clk 0:00:21]}  Rc8 {[%clk 0:01:49]} 0-1


[Site "https://www.chess.com"]

[Event "Titled Tuesday Blitz November 14 Early 2023"]
[White "Borgaonkar Akshay"]
[Black "Dudzinski, Pawel"]
[WhiteFideId "25639110"]
[BlackFideId "1117890"]
[WhiteElo "2622"]
[BlackElo "2497"]
[Result "1-0"]
[Round "10"]
[TimeControl "180+1"]
[Date "2023.11.14"]
[WhiteClock "0:02:02"]
[BlackClock "0:01:47"]
[Board "91"]

1. d4 {[%clk 0:03:00]}  f5 {[%clk 0:02:56]} 2. Bg5 {[%clk 0:03:00]}  g6 {[%clk 0:02:55]} 3. Nc3 {[%clk 0:02:59]}  Bg7 {[%clk 0:02:55]} 4. Qd2 {[%clk 0:02:59]}  h6 {[%clk 0:02:55]} 5. Bf4 {[%clk 0:02:56]}  g5 {[%clk 0:02:55]} 6. Be5 {[%clk 0:02:56]}  Nf6 {[%clk 0:02:56]} 7. h4 {[%clk 0:02:55]}  g4 {[%clk 0:02:56]} 8. O-O-O {[%clk 0:02:54]}  d6 {[%clk 0:02:56]} 9. Bf4 {[%clk 0:02:55]}  Nc6 {[%clk 0:02:49]} 10. f3 {[%clk 0:02:53]}  Nh5 {[%clk 0:02:48]} 11. d5 {[%clk 0:02:47]}  Nxf4 {[%clk 0:02:41]} 12. dxc6 {[%clk 0:02:42]}  Ng6 {[%clk 0:02:40]} 13. e4 {[%clk 0:02:37]}  bxc6 {[%clk 0:02:36]} 14. exf5 {[%clk 0:02:35]}  Bxf5 {[%clk 0:02:37]} 15. fxg4 {[%clk 0:02:30]}  Bxg4 {[%clk 0:02:38]} 16. Be2 {[%clk 0:02:24]}  Bxe2 {[%clk 0:02:37]} 17. Ngxe2 {[%clk 0:02:22]}  e5 {[%clk 0:02:36]} 18. Qd3 {[%clk 0:02:21]}  Qf6 {[%clk 0:02:35]} 19. Rhf1 {[%clk 0:02:20]}  Qe6 {[%clk 0:02:35]} 20. Rde1 {[%clk 0:02:18]}  c5 {[%clk 0:02:22]} 21. Nd5 {[%clk 0:02:13]}  O-O-O {[%clk 0:02:18]} 22. Qa6+ {[%clk 0:02:02]}  Kd7 {[%clk 0:02:16]} 23. Qb5+ {[%clk 0:02:01]}  Kc8 {[%clk 0:02:15]} 24. Qc6 {[%clk 0:02:01]}  Kb8 {[%clk 0:01:47]} 25. Rf3 {[%clk 0:02:02]} 1-0


[Site "https://www.chess.com"]